bitfinex/quotes_ETHUSD_20250413
["timestamp","ask_amount","ask_price","bid_price","bid_amount"]
[1744572873551,0.02,1620.4,1620.3,6.14]
[1744572873784,6.19131,1620.4,1620.3,6.14]
[1744572873986,6.19131,1620.4,1620.2,6.14]
[1744572874190,12.3628,1620.4,1620.2,6.14]
[1744572874551,6.17207,1620.2,1620.1,6.14]
[1744572875166,6.17261,1620.1,1619.9,6.14]
[1744572875557,6.17283,1620.0,1619.9,6.14]
[1744572875758,6.97353,1619.8,1619.6,6.14]
[1744572876260,6.17398,1619.7,1619.6,6.14]
[1744572877035,6.17398,1619.7,1618.9,0.7975]
[1744572877036,6.97464,1619.5,1618.9,0.7975]
[1744572877170,6.1759,1619.2,1618.9,0.7975]
[1744572877502,6.1759,1619.2,1618.8,6.17722]
[1744572877964,6.17706,1618.9,1618.5,18.28912192]
[1744572878163,6.17703,1618.9,1618.5,5.31470192]
[1744572878403,0.7999,1619.0,1618.5,5.31470192]
[1744572878562,0.7999,1619.0,1618.6,12.41783903]
[1744572878764,0.7999,1619.0,1618.6,12.35606]
[1744572879107,0.7999,1619.0,1618.7,1.235606]
[1744572879662,6.97655,1619.0,1618.7,1.235606]
[1744572880195,0.7999,1619.0,1618.5,6.17854]
[1744572880405,6.97655,1619.0,1618.1,11.43912289]
[1744572880564,6.97848,1618.5,1618.1,6.17976]
[1744572880781,12.97084,1618.7,1618.2,6.24148037]
[1744572881070,6.17832,1618.6,1618.2,6.17969]
[1744572881267,6.17832,1618.6,1618.2,12.35922]
[1744572881489,6.17857,1618.5,1618.2,6.17953]
[1744572881684,6.17933,1618.3,1618.1,1.37756052]
[1744572881873,6.17933,1618.3,1617.9,6.18083]
[1744572882403,6.17933,1618.3,1617.8,11.73437532]
[1744572882404,6.17974,1618.2,1617.8,6.18123]
[1744572882612,0.7647,1618.1,1617.8,0.06180259]
[1744572882811,6.18085,1617.9,1617.6,5.31470192]
[1744572883162,6.9449,1618.1,1617.6,5.31470192]
[1744572883468,6.9449,1618.1,1617.7,0.59327889]
[1744572883692,13.12524,1618.1,1617.7,6.77466889]
[1744572883864,6.9449,1618.1,1617.7,6.71286019]
[1744572884264,6.9449,1618.1,1617.7,12.95613889]
[1744572884498,6.9449,1618.1,1617.7,12.95610889]
[1744572884698,13.12526,1618.1,1617.7,6.71286019]
[1744572884900,6.9449,1618.1,1617.7,12.95613889]
[1744572885300,6.9449,1618.1,1617.7,12.89433019]
[1744572885464,13.12526,1618.1,1617.7,6.71286019]
[1744572887603,13.12525,1618.1,1617.7,6.77466888]
[1744572887902,6.18178,1617.7,1617.3,6.93591]
[1744572888124,6.18215,1617.6,1617.2,10.98345532]
[1744572888421,0.7647,1617.7,1617.5,6.18236]
[1744572888983,6.18129,1617.8,1617.5,6.18236]
[1744572889915,13.74258,1617.9,1617.5,12.36462]
[1744572890116,13.74258,1617.9,1617.6,6.18186]
[1744572890409,13.74258,1617.9,1617.5,8.171612]
[1744572890410,6.797,1617.9,1617.5,8.171612]
[1744572890612,6.797,1617.9,1617.7,6.1814]
[1744572890985,6.797,1617.9,1617.7,12.36282]
[1744572891509,0.7647,1618.2,1617.8,6.18123]
[1744572891808,0.7647,1618.2,1617.9,12.36126]
[1744572892711,6.18032,1618.1,1617.8,0.618123]
[1744572892907,13.12429,1618.2,1617.8,6.1812]
[1744572893112,6.94444,1618.2,1617.9,6.18078]
[1744572893270,6.94444,1618.2,1617.9,12.36147]
[1744572893474,0.7647,1618.2,1617.9,12.36147]
[1744572894007,6.94454,1618.2,1617.9,6.18069]
[1744572894174,8.936726,1618.2,1617.7,6.18153]
[1744572894373,6.1801,1618.1,1617.7,12.36306]
[1744572894612,6.1801,1618.1,1617.8,6.18119]
[1744572894906,8.936726,1618.2,1617.6,12.32186]
[1744572894907,6.18052,1618.0,1617.6,12.32186]
[1744572895109,0.7647,1617.8,1617.6,6.14]
[1744572895414,6.94601,1617.8,1617.4,12.32273]
[1744572895623,6.18178,1617.7,1617.4,12.32273]
[1744572895980,6.94601,1617.8,1617.4,12.3226]
[1744572896800,6.94601,1617.8,1617.5,6.18231]
[1744572897202,6.94601,1617.8,1617.4,12.3226]
[1744572897402,6.18171,1617.7,1617.4,12.3226]
[1744572897591,6.94601,1617.8,1617.4,18.50519]
[1744572897977,0.694601,1617.7,1617.4,12.32259]
[1744572898315,13.058111,1617.7,1617.4,6.14]
[1744572898514,6.876211,1617.7,1617.4,6.14]
[1744572898990,6.876211,1617.7,1617.4,12.32262]
[1744572899188,0.7647,1617.8,1617.4,6.14]
[1744572899376,6.799,1617.9,1617.6,6.18174]
[1744572899602,12.97995,1617.9,1617.6,6.18174]
[1744572899945,12.36274,1617.8,1617.4,13.09877]
[1744572900097,6.18179,1617.7,1617.4,12.32275]
[1744572901040,8.097404,1617.8,1617.4,12.3226]
[1744572901203,6.18174,1617.7,1617.4,12.3226]
[1744572901399,6.18174,1617.7,1617.4,12.32275]
[1744572901746,8.097444,1617.8,1617.4,12.32261]
[1744572902090,6.18162,1617.7,1617.4,12.32261]
[1744572902372,0.8306,1618.5,1617.5,7.5219]
[1744572902645,0.8306,1618.5,1617.9,8.63214532]
[1744572902942,7.6316,1618.8,1618.6,6.17793]
[1744572903100,7.6316,1618.8,1617.9,21.20758505]
[1744572903101,0.8306,1618.8,1617.9,21.20758505]
[1744572903302,12.35748,1618.5,1618.1,6.17993]
[1744572903543,0.8306,1618.2,1617.7,6.18142]
[1744572903839,0.8306,1618.2,1617.6,6.18198]
[1744572903840,6.1809,1617.9,1617.6,6.18198]
[1744572904000,6.18123,1617.8,1617.4,6.18269]
[1744572904200,13.682413,1617.8,1617.4,6.18269]
[1744572904440,6.8,1617.8,1617.7,6.18161]
[1744572904613,6.8,1617.8,1617.6,6.18183]
[1744572904813,12.98147,1617.8,1617.2,5.63214532]
[1744572905019,12.98147,1617.8,1617.4,12.36515]
[1744572905218,12.98147,1617.8,1617.5,6.18236]
[1744572905418,14.980756,1617.8,1617.4,12.36514]
[1744572906611,14.980756,1617.8,1617.4,6.18257]
[1744572906813,14.980756,1617.8,1617.5,6.1823]
[1744572907743,6.8,1617.8,1617.7,6.18161]
[1744572907944,6.8,1617.8,1617.6,0.19313094]
[1744572908146,12.98123,1617.8,1617.6,0.19313094]
[1744572908341,6.8,1617.8,1617.6,0.19313094]
[1744572908535,6.8,1617.8,1617.6,6.18199]
[1744572908745,6.8,1617.8,1617.6,6.18182]
[1744572909040,6.8,1617.8,1617.5,6.18226]
[1744572909254,6.8,1617.8,1617.6,0.19313597]
[1744572909411,6.8,1617.8,1617.6,12.55671597]
[1744572909613,0.8306,1617.9,1617.7,0.19313597]
[1744572909809,7.01171,1617.9,1617.7,0.19313597]
[1744572910046,9.010984,1617.9,1617.7,0.19313597]
[1744572910353,6.18163,1617.7,1617.4,6.14]
[1744572910648,9.010804,1617.9,1617.6,6.18195]
[1744572910847,15.191854,1617.9,1617.5,12.3645]
[1744572911036,9.010804,1617.9,1617.5,12.3645]
[1744572911243,9.010794,1617.9,1617.6,6.18184]
[1744572911416,9.010794,1617.9,1617.7,0.19313582]
[1744572911749,9.010794,1617.9,1617.6,6.18184]
[1744572911938,15.191904,1617.9,1617.5,6.18232]
[1744572912318,15.191904,1617.9,1617.6,0.19313593]
[1744572912518,2.829924,1617.9,1617.6,6.37498593]
[1744572912850,9.010834,1617.9,1617.6,6.37498593]
[1744572913022,9.010834,1617.9,1617.7,0.19313593]
[1744572913634,0.8306,1617.9,1617.7,0.19313593]
[1744572913835,0.8306,1617.9,1617.8,0.19313593]
[1744572914353,0.8306,1617.9,1617.6,12.32181]
[1744572914733,0.8306,1617.9,1617.7,0.19313685]
[1744572914935,7.00605,1618.1,1617.7,0.2549512]
[1744572915135,0.8259,1618.1,1617.8,12.55535685]
[1744572915663,0.8259,1618.1,1617.9,0.19313685]
[1744572916168,7.00601,1618.1,1618.0,0.19313685]
[1744572916571,0.8259,1618.1,1618.0,0.19313685]
[1744572916865,6.18008,1618.1,1618.0,0.19313685]
[1744572917367,6.18008,1618.2,1618.0,0.19313685]
[1744572917556,6.18008,1618.2,1617.9,18.50146]
[1744572917737,12.35997,1618.2,1617.9,7.990146]
[1744572917943,10.6269,1618.3,1617.6,6.14]
[1744572917944,6.18161,1617.7,1617.6,6.14]
[1744572918141,12.36348,1617.7,1617.4,6.14]
[1744572918355,7.01051,1617.7,1617.6,0.19315271]
[1744572918540,6.798,1617.9,1617.6,6.37509271]
[1744572918740,6.798,1617.9,1617.7,6.18147]
[1744572918940,6.798,1617.9,1617.6,6.37508271]
[1744572919159,6.798,1617.9,1617.7,6.37476271]
[1744572919464,6.798,1617.9,1617.7,0.19315271]
[1744572919642,6.798,1617.9,1617.8,0.19315271]
[1744572921352,6.798,1617.9,1617.8,6.37438271]
[1744572921660,6.798,1618.1,1617.8,6.37426271]
[1744572921849,6.798,1618.1,1617.9,0.19315271]
[1744572922473,9.798,1618.1,1618.0,0.19315271]
[1744572922676,0.8289,1618.4,1618.0,0.19315271]
[1744572922884,60.6389,1618.6,1618.3,6.1792]
[1744572923177,0.8289,1618.8,1618.4,6.20178842]
[1744572923388,7.6269,1619.0,1618.7,6.17765]
[1744572923676,7.6269,1619.0,1618.7,6.17763]
[1744572924270,7.00441,1619.3,1618.9,6.17677]
[1744572924438,4.0626535,1619.2,1618.9,12.31677]
[1744572924944,4.0626535,1619.2,1619.0,0.19315271]
[1744572925339,4.0626535,1619.2,1618.9,12.31677]
[1744572925539,4.0626535,1619.2,1618.9,18.49361]
[1744572925761,4.0626535,1619.2,1618.9,6.14]
[1744572925762,10.2387135,1619.2,1618.9,6.14]
[1744572926760,6.17628,1619.1,1618.9,6.14]
[1744572927086,11.96302885,1619.2,1618.9,12.31696]
[1744572927458,7.90037535,1619.2,1618.9,12.31696]
[1744572927648,7.00445,1619.3,1618.9,18.55561584]
[1744572927845,0.8289,1619.5,1619.2,6.17575]
[1744572928065,6.17442,1619.6,1619.3,12.31542]
[1744572928275,6.174,1619.7,1619.3,6.9492]
[1744572928476,6.17412,1619.7,1619.4,6.14]
[1744572928677,7.00348,1619.6,1619.4,6.14]
[1744572928945,7.00348,1619.6,1619.1,6.9492]
[1744572928946,7.00342,1619.6,1619.1,6.9492]
[1744572929289,6.17633,1619.1,1618.8,6.9492]
[1744572929450,7.00478,1619.2,1618.8,12.37901682]
[1744572929681,0.8289,1619.2,1618.9,6.17699]
[1744572930080,7.00487,1619.2,1618.8,12.31725]
[1744572930284,1.529387,1619.2,1618.7,6.14]
[1744572930525,6.17741,1618.8,1618.7,6.14]
[1744572930896,6.794,1619.1,1618.7,6.14]
[1744572931285,12.97045,1619.1,1618.7,12.31766]
[1744572931495,12.97045,1619.1,1618.8,7.04814709]
[1744572931496,6.794,1619.1,1618.8,7.04814709]
[1744572931721,6.794,1619.1,1618.9,0.42465021]
[1744572931926,12.97057,1619.1,1618.9,0.42465021]
[1744572932137,6.17665,1619.0,1618.9,0.42465021]
[1744572932284,7.00555,1619.0,1618.9,0.42465021]
[1744572932483,6.17715,1618.9,1618.7,6.14]
[1744572932727,7.00555,1619.0,1618.8,0.44089968]
[1744572933455,13.18242,1619.0,1618.8,0.44089968]
[1744572934635,7.00555,1619.0,1618.8,0.44089968]
[1744572934850,12.35351,1619.0,1618.8,0.44089968]
[1744572935150,6.17703,1618.9,1618.8,0.44089968]
[1744572937307,8.216998,1618.9,1618.8,0.44089968]
[1744572937647,8.216998,1618.9,1618.8,0.44192916]
[1744572937851,6.98163,1618.9,1618.6,6.17816]
[1744572938147,6.17669,1619.0,1618.7,6.61967916]
[1744572938354,12.35354,1619.0,1618.7,6.61967916]
[1744572938532,6.17669,1619.0,1618.7,6.61967916]
[1744572938742,6.17665,1619.0,1618.7,6.58192916]
[1744572938925,6.17741,1618.8,1618.7,6.58192916]
[1744572944054,6.17741,1618.8,1618.7,0.44192916]
[1744572944260,6.17813,1618.7,1618.5,6.14]
[1744572944556,6.17817,1618.6,1618.5,6.14]
[1744572945917,6.17856,1618.5,1618.4,6.14]
[1744572946116,6.1797,1618.2,1618.1,6.14]
[1744572946657,6.18123,1617.8,1617.4,4.80024532]
[1744572946955,6.18085,1617.9,1617.4,4.80024532]
[1744572946956,6.18199,1617.6,1617.5,6.33311442]
[1744572947159,6.18199,1617.6,1617.5,0.19311442]
[1744572947526,0.7503,1617.8,1617.4,6.14]
[1744572947737,6.18238,1617.5,1617.4,0.614]
[1744572947929,6.18352,1617.2,1617.1,5.33470192]
[1744572948149,12.97452,1617.2,1617.1,1.92e-06]
[1744572948467,9.93459,1617.0,1616.9,6.63e-06]
[1744572949869,9.93459,1617.0,1616.1,6.3e-06]
[1744572949870,6.93765,1616.2,1616.1,6.3e-06]
[1744572950055,14.27965,1616.2,1616.1,6.3e-06]
[1744572950251,16.72965,1616.2,1616.1,6.3e-06]
[1744572950639,16.72965,1616.2,1616.1,0.31542686]
[1744572951133,10.5423,1616.2,1616.1,0.31542686]
[1744572951560,7.5423,1616.2,1616.1,0.31542686]
[1744572951956,6.792,1616.2,1616.1,0.31542686]
[1744572952365,56.001,1616.4,1616.1,0.31542686]
[1744572952873,53.001,1616.4,1616.1,0.31542686]
[1744572953373,6.18727,1616.3,1616.1,0.31542056]
[1744572953593,9.18735,1616.2,1616.1,0.31542056]
[1744572953941,10.00535,1616.2,1616.1,0.31542056]
[1744572954136,0.818,1616.2,1616.1,0.31542056]
[1744572954357,0.818,1616.2,1616.0,50.0]
[1744572954358,3.0,1616.4,1616.0,50.0]
[1744572954553,3.0,1616.4,1616.1,0.36382454]
[1744572954756,4.68002,1616.4,1616.1,0.36382454]
[1744572955273,13.8002,1616.5,1616.1,0.36382454]
[1744572956185,6.796,1616.5,1616.1,6.55151454]
[1744572956482,1.7,1616.4,1616.1,6.55151454]
[1744572956842,1.7,1616.4,1616.1,12.73902454]
[1744572957290,1.7,1616.4,1616.1,6.55133454]
[1744572957692,1.7,1616.4,1616.1,6.55129454]
[1744572957892,1.7,1616.4,1616.3,6.18697]
[1744572958093,1.7,1616.4,1616.3,0.36351643]
[1744572958679,1.7,1616.4,1616.3,6.55048643]
[1744572959903,6.799,1616.8,1616.3,6.55048643]
[1744572959904,6.18561,1616.7,1616.3,6.55048643]
[1744572960058,6.799,1616.8,1616.5,6.18607]
[1744572960265,53.844,1617.0,1616.6,0.36166805]
[1744572960464,6.799,1617.1,1616.7,6.20185185]
[1744572960661,0.818,1617.3,1616.9,6.18434]
[1744572960902,0.818,1617.3,1617.0,0.35745836]
[1744572961102,6.1838,1617.2,1617.0,0.35745836]
[1744572961303,7.502296,1617.2,1616.8,6.185]
[1744572961461,7.502296,1617.2,1616.9,0.35745836]
[1744572961667,0.818,1617.3,1617.0,6.51173016]
[1744572961862,6.18382,1617.2,1617.0,0.32767016]
[1744572962175,3.0,1617.2,1616.7,6.14]
[1744572962514,3.0,1617.2,1616.9,6.18435]
[1744572962710,7.00013,1617.6,1617.1,6.18374]
[1744572962873,6.18251,1617.5,1617.2,0.32767016]
[1744572963070,6.18251,1617.5,1617.1,12.36743]
[1744572963411,0.818,1617.6,1617.2,0.32767016]
[1744572963575,3.818,1617.6,1617.2,0.32767016]
[1744572963781,3.818,1617.6,1616.8,6.18492]
[1744572963782,7.00188,1617.2,1616.8,6.18492]
[1744572963982,0.818,1617.2,1616.8,6.18505]
[1744572964166,7.00169,1617.2,1616.8,6.18505]
[1744572964367,13.18551,1617.2,1616.8,6.18505]
[1744572964611,13.18551,1617.2,1616.7,12.3254]
[1744572964818,15.483961,1617.2,1616.7,12.3254]
[1744572965002,6.18409,1617.1,1616.7,12.3254]
[1744572965203,9.300091,1617.2,1616.7,6.18524]
[1744572965394,15.483961,1617.2,1616.7,6.18524]
[1744572965593,3.0,1617.1,1616.5,6.14]
[1744572965818,3.6116451,1617.1,1616.9,6.18454]
[1744572965980,3.6116451,1617.1,1616.8,6.18492]
[1744572966180,3.6116451,1617.1,1616.8,6.18489]
[1744572966492,3.0,1617.1,1616.8,6.18489]
[1744572966809,3.0,1617.1,1616.9,6.18452]
[1744572967612,3.0,1617.1,1616.8,12.36977]
[1744572967912,0.818,1617.2,1616.9,6.18467]
[1744572968115,12.9822,1617.3,1616.9,6.18467]
[1744572968322,15.281922,1617.3,1616.9,6.18467]
[1744572969403,15.281922,1617.3,1617.0,0.32767016]
[1744572970520,21.465292,1617.3,1617.0,0.32767016]
[1744572970694,15.281922,1617.3,1617.0,0.32767016]
[1744572971795,6.1839,1617.1,1617.0,0.32767016]
[1744572972000,7.42066,1617.1,1617.0,0.32767016]
[1744572972307,9.098722,1617.3,1617.0,6.18428]
[1744572972503,15.281882,1617.3,1617.1,0.31617604]
[1744572973518,6.18352,1617.2,1617.1,0.31617604]
[1744572973720,12.36737,1617.2,1616.8,12.32492]
[1744572974023,15.281922,1617.3,1617.0,6.18428]
[1744572974230,10.015,1617.4,1617.0,6.18428]
[1744572974231,0.757,1617.6,1617.0,6.97933]
[1744572974437,0.757,1617.9,1617.1,12.38545311]
[1744572974602,6.18123,1617.8,1617.1,6.45627863]
[1744572974797,0.757,1617.9,1617.1,6.45627863]
[1744572974798,6.18281,1617.4,1617.1,6.45627863]
[1744572975028,12.36593,1617.4,1617.1,6.45627863]
[1744572975236,6.18238,1617.5,1617.1,0.31627863]
[1744572975442,6.18336,1617.3,1617.1,0.31627863]
[1744572975722,6.18336,1617.3,1617.2,0.31443219]
[1744572975928,7.419979,1617.3,1616.9,12.3245]
[1744572976234,7.419979,1617.3,1617.2,0.31443219]
[1744572976521,6.18353,1617.2,1616.9,12.32457]
[1744572976823,7.419979,1617.3,1616.9,18.50907]
[1744572977224,7.419979,1617.3,1616.9,12.3245]
[1744572977390,6.18368,1617.2,1616.9,12.3245]
[1744572977592,6.18368,1617.2,1616.9,6.14]
[1744572977793,12.36739,1617.2,1616.9,6.14]
[1744572978117,6.18398,1617.1,1616.8,12.325]
[1744572978319,6.18398,1617.1,1616.8,6.14]
[1744572978532,6.18398,1617.1,1616.7,11.79639598]
[1744572978927,6.18398,1617.1,1616.7,17.98171598]
[1744572979142,8.2134009,1617.2,1616.7,5.61104598]
[1744572979433,6.853,1617.2,1617.0,6.18404]
[1744572979808,3.0,1617.3,1617.0,6.18404]
[1744572980006,3.0,1617.3,1617.1,6.1839]
[1744572980251,3.0,1617.3,1617.0,6.18404]
[1744572980550,3.0,1617.3,1617.0,12.36817]
[1744572980909,3.0,1617.3,1617.0,6.18404]
[1744572981110,10.799655,1617.3,1617.0,6.18404]
[1744572981304,10.799655,1617.3,1617.0,6.18427]
[1744572981507,4.616455,1617.3,1617.0,12.3684]
[1744572983055,0.7986,1617.4,1616.9,12.32467]
[1744572983350,3.0,1617.4,1617.1,6.18372]
[1744572983550,13.03568,1617.5,1617.2,6.18333]
[1744572983753,13.03568,1617.5,1617.2,12.3667]
[1744572984155,6.18326,1617.3,1617.0,11.80335598]
[1744572984455,9.18283,1617.4,1617.0,6.24609862]
[1744572984608,3.0,1617.4,1616.9,6.14]
[1744572984807,9.18289,1617.4,1617.0,6.18401]
[1744572985010,9.18289,1617.4,1616.9,12.32459]
[1744572985011,3.0,1617.4,1616.9,12.32459]
[1744572985248,3.0,1617.4,1616.8,0.8034]
[1744572985249,0.813,1617.2,1616.6,13.12902]
[1744572985531,6.99674,1617.2,1616.8,6.18486]
[1744572985741,6.883634,1617.1,1616.8,6.18486]
[1744572985944,6.883634,1617.1,1616.8,12.36979]
[1744572986153,6.883634,1617.1,1616.8,6.18503]
[1744572986468,1.7,1617.0,1616.8,6.18503]
[1744572986765,6.883634,1617.1,1616.8,6.18503]
[1744572986967,10.00639,1617.4,1616.7,4.81574598]
[1744572987162,3.8235,1617.4,1617.2,12.36678]
[1744572987353,6.853,1617.5,1617.3,6.183]
[1744572987550,1.441623,1617.7,1617.4,6.18276]
[1744572987743,0.618123,1617.7,1617.5,6.18216]
[1744572987944,6.853,1617.8,1617.6,12.36377]
[1744572988733,6.853,1618.1,1617.8,6.18106]
[1744572988934,6.18053,1618.0,1617.6,12.32192]
[1744572989234,6.18099,1617.9,1617.7,0.30940693]
[1744572989428,6.18046,1618.0,1617.6,6.14]
[1744572989644,6.18136,1617.8,1617.7,0.30940693]
[1744572989834,6.18136,1617.8,1617.6,6.14]
[1744572990044,6.18136,1617.8,1617.7,0.30940693]
[1744572990336,7.00511,1617.7,1617.1,6.18387]
[1744572990642,6.18269,1617.5,1617.2,0.27606222]
[1744572990827,6.18314,1617.3,1617.0,17.97231598]
[1744572991030,6.18314,1617.3,1617.1,0.27606222]
[1744572991265,0.618269,1617.4,1617.1,0.27606222]
[1744572991641,6.801039,1617.4,1617.1,0.27606222]
[1744572991839,0.618269,1617.4,1617.1,0.27606222]
[1744572992039,6.18322,1617.3,1617.1,0.27606222]
[1744572992470,6.18352,1617.2,1617.1,0.27606222]
[1744572993265,6.18289,1617.4,1617.1,0.27606222]
[1744572993476,3.8235,1617.5,1617.1,0.27606222]
[1744572993684,6.18352,1617.2,1617.1,0.27606222]
[1744572993888,1.441546,1617.9,1617.6,6.18183]
[1744572994051,6.18138,1617.8,1617.7,0.28056642]
[1744572994390,12.36285,1617.8,1617.4,6.18276]
[1744572994681,6.18138,1617.8,1617.4,12.36537]
[1744572994858,0.618046,1617.9,1617.7,6.18158]
[1744572995040,6.799166,1617.9,1617.5,6.18232]
[1744572995243,12.980226,1617.9,1617.6,6.46252642]
[1744572995465,1.2980226,1617.8,1617.6,0.28056642]
[1744572995651,7.00511,1617.7,1617.6,0.28056642]
[1744572995853,6.18243,1617.5,1617.2,12.32347]
[1744572996053,6.18201,1617.6,1617.3,0.2747319]
[1744572996253,6.18253,1617.5,1617.3,0.2747319]
[1744572996586,7.418984,1617.5,1617.3,0.2747319]
[1744572997085,6.18276,1617.4,1617.3,0.2747319]
[1744572997287,6.18276,1617.4,1617.1,13.19988]
[1744572997590,7.418984,1617.5,1617.2,6.45834655]
[1744572997788,7.418984,1617.5,1617.2,12.64170655]
[1744572997973,0.7418984,1617.4,1617.2,6.45829655]
[1744572998586,6.9248484,1617.4,1617.2,0.27493655]
[1744572998887,6.9248484,1617.4,1617.1,7.01615]
[1744572999093,6.9248484,1617.4,1617.2,0.27493655]
[1744572999251,6.18372,1617.2,1617.0,6.14]
[1744572999451,6.18372,1617.2,1617.1,0.27493655]
[1744572999653,3.0,1617.2,1617.1,0.27493655]
[1744572999884,3.0,1617.2,1617.0,6.18411]
[1744573000047,8.36798484,1617.3,1617.1,6.45863655]
[1744573000246,3.0,1617.4,1617.1,6.45851655]
[1744573000455,3.0,1617.4,1617.2,6.18344]
[1744573000656,3.0,1617.5,1617.3,6.18314]
[1744573000891,3.0,1617.5,1617.1,6.18367]
[1744573001046,3.0,1617.5,1617.2,6.18352]
[1744573001249,3.0,1617.5,1617.2,12.36691]
[1744573001450,3.0,1617.5,1617.3,6.18302]
[1744573001645,13.85751,1617.6,1617.3,6.18302]
[1744573001889,16.161427,1617.6,1617.2,6.18337]
[1744573002050,22.343757,1617.6,1617.2,12.36676]
[1744573002253,6.1824,1617.5,1617.2,6.18337]
[1744573002783,12.36503,1617.5,1617.2,6.14]
[1744573002990,6.1824,1617.5,1617.2,6.14]
[1744573003496,6.1824,1617.5,1617.2,12.32338]
[1744573003694,16.161477,1617.6,1617.3,6.18297]
[1744573003879,1.6161477,1617.5,1617.2,6.14]
[1744573004050,1.6161477,1617.5,1617.3,0.2789288]
[1744573004491,9.155917,1617.6,1617.3,6.4619088]
[1744573004693,6.852,1617.6,1617.3,12.6448788]
[1744573006091,0.793,1617.8,1617.5,6.18238]
[1744573006266,0.793,1617.8,1617.6,6.18195]
[1744573006461,0.793,1617.8,1617.7,0.2789288]
[1744573006782,0.793,1617.8,1617.5,12.36459]
[1744573006953,0.793,1617.8,1617.7,0.2789288]
[1744573007154,0.793,1617.8,1617.5,6.18221]
[1744573007356,0.793,1617.8,1617.6,0.2789288]
[1744573007651,13.03703,1617.9,1617.6,0.2789288]
[1744573007876,9.48408735,1617.9,1617.6,12.6428288]
[1744573008283,15.66497735,1617.9,1617.6,6.4608788]
[1744573008451,9.48408735,1617.9,1617.6,7.2238888]
[1744573008681,6.856,1617.9,1617.6,7.2238888]
[1744573008881,13.03704,1617.9,1617.6,7.2238888]
[1744573009591,19.2181,1617.9,1617.6,7.2238888]
[1744573009909,13.03704,1617.9,1617.6,7.2238888]
[1744573010109,19.2181,1617.9,1617.6,7.2238888]
[1744573010531,6.856,1617.9,1617.6,13.4057388]
[1744573010699,6.18123,1617.8,1617.6,0.2789288]
[1744573011030,6.18161,1617.7,1617.6,0.2789288]
[1744573011223,7.01141,1617.7,1617.6,0.2789288]
[1744573011535,6.18325,1617.3,1617.0,13.13226]
[1744573011833,6.855,1617.5,1617.1,6.18368]
[1744573012129,13.03745,1617.5,1617.2,12.36702]
[1744573012427,6.855,1617.5,1617.3,6.18312]
[1744573014029,6.18204,1617.6,1617.3,6.18292]
[1744573014334,6.18257,1617.5,1617.1,6.18376]
[1744573014627,12.36532,1617.5,1617.1,6.18376]
[1744573014856,6.1833,1617.3,1617.0,6.18421]
[1744573015530,0.8289,1616.8,1616.2,0.31298143]
[1744573015836,6.856,1616.7,1616.1,6.8919]
[1744573016161,6.856,1616.7,1616.4,6.18641]
[1744573016460,6.856,1616.7,1616.5,6.18606]
[1744573016658,6.856,1616.7,1616.5,6.18583]
[1744573016959,16.86925,1617.0,1616.6,12.37164]
[1744573017326,16.86925,1617.0,1616.6,12.37148]
[1744573017530,19.22118567,1617.0,1616.6,6.18566]
[1744573017861,1.7,1616.9,1616.6,6.18564]
[1744573018014,7.88483,1616.9,1616.5,17.18797598]
[1744573018222,7.88477,1616.9,1616.6,6.18551]
[1744573018524,1.7,1616.9,1616.6,6.18551]
[1744573018927,1.7,1616.9,1616.7,0.26912788]
[1744573019138,7.88485,1616.9,1616.6,6.18565]
[1744573019318,7.88485,1616.9,1616.7,0.26912788]
[1744573019517,1.7,1616.9,1616.5,4.81574598]
[1744573019751,1.7,1616.9,1616.6,6.45479788]
[1744573020256,6.18506,1616.8,1616.6,0.26912788]
[1744573020413,12.37042,1616.8,1616.6,0.26912788]
[1744573020616,12.37035,1616.8,1616.6,0.26912788]
[1744573021014,6.18506,1616.8,1616.6,0.26912788]
[1744573021258,12.37032,1616.8,1616.6,0.26912788]
[1744573021411,6.18506,1616.8,1616.6,0.26912788]
[1744573021856,6.18543,1616.7,1616.6,0.26912788]
[1744573022020,6.18506,1616.8,1616.4,19.32646987]
[1744573022220,6.18506,1616.8,1616.6,0.26912788]
[1744573022221,6.18543,1616.7,1616.6,0.26912788]
[1744573022556,6.18506,1616.8,1616.6,0.26912788]
[1744573022557,6.1851,1616.8,1616.6,0.26912788]
[1744573023366,6.18543,1616.7,1616.6,0.26912788]
[1744573023511,6.18543,1616.7,1616.1,6.14]
[1744573023512,6.18735,1616.2,1616.1,6.14]
[1744573023730,6.18773,1616.1,1616.0,50.0]
[1744573024123,9.18773,1616.1,1616.0,50.0]
[1744573024356,11.476738,1616.1,1616.0,50.0]
[1744573024910,11.476738,1616.1,1615.1,0.02]
[1744573024911,6.19118,1615.2,1615.1,0.02]
[1744573025058,16.04818,1615.2,1615.1,0.02]
[1744573025230,6.857,1615.2,1615.1,0.02]
[1744573025435,13.04818,1615.2,1615.1,0.02]
[1744573025668,6.19271,1614.8,1614.7,0.005]
[1744573025976,6.19271,1614.8,1614.5,7.9e-06]
[1744573025977,10.49498,1614.6,1614.5,7.9e-06]
[1744573026172,7.49575,1614.4,1613.9,13.85412492]
[1744573026332,3.7515,1614.0,1613.6,11.6896547]
[1744573026663,3.7515,1614.0,1612.9,0.4027079]
[1744573026664,9.45575,1613.2,1612.9,0.4027079]
[1744573026827,7.3919,1613.2,1612.9,0.4027079]
[1744573027028,60.01911,1613.6,1613.0,23.69622456]
[1744573027236,6.19875,1613.3,1613.0,17.46661456]
[1744573027471,9.19774,1613.5,1613.0,17.46661456]
[1744573027472,9.19924,1613.1,1613.0,17.46661456]